[Event "November 21 Early 2023"]
[Site "https://www.chess.com"]
[Date "2023.11.21"]
[Round "5"]
[White "Predator0608"]
[Black "Maksimovic, Bojan"]
[Result "0-1"]
[Board "52"]
[TimeControl "180+1"]
[BlackFideId "14408120"]
[WhiteElo "2598"]
[BlackElo "2546"]
[BlackTeam "BIH"]
[WhiteClock "0:01:13"]
[BlackClock "0:02:01"]

1. e4 {[%clk 0:03:00]}  a6 {[%clk 0:02:57]} 2. d4 {[%clk 0:03:00]}  e6 {[%clk 0:02:56]} 3. Nf3 {[%clk 0:02:55]}  d5 {[%clk 0:02:56]} 4. Nbd2 {[%clk 0:02:54]}  c5 {[%clk 0:02:56]} 5. exd5 {[%clk 0:02:27]}  exd5 {[%clk 0:02:51]} 6. dxc5 {[%clk 0:02:27]}  Bxc5 {[%clk 0:02:51]} 7. Nb3 {[%clk 0:02:27]}  Ba7 {[%clk 0:02:47]} 8. Bd3 {[%clk 0:02:25]}  Nf6 {[%clk 0:02:47]} 9. O-O {[%clk 0:02:24]}  O-O {[%clk 0:02:47]} 10. Bg5 {[%clk 0:02:22]}  Nc6 {[%clk 0:02:43]} 11. c3 {[%clk 0:02:19]}  Bg4 {[%clk 0:02:41]} 12. h3 {[%clk 0:02:17]}  Bh5 {[%clk 0:02:41]} 13. Qc2 {[%clk 0:02:12]}  Bxf3 {[%clk 0:02:28]} 14. Bxh7+ {[%clk 0:02:08]}  Kh8 {[%clk 0:02:28]} 15. gxf3 {[%clk 0:02:09]}  Qd6 {[%clk 0:02:28]} 16. Bd3 {[%clk 0:01:38]}  Qg3+ {[%clk 0:02:25]} 17. Kh1 {[%clk 0:01:28]}  Qxh3+ {[%clk 0:02:25]} 18. Kg1 {[%clk 0:01:28]}  Qg3+ {[%clk 0:02:25]} 19. Kh1 {[%clk 0:01:29]}  Qxf3+ {[%clk 0:02:24]} 20. Kg1 {[%clk 0:01:25]}  Qg4+ {[%clk 0:02:17]} 21. Kh1 {[%clk 0:01:22]}  Qh5+ {[%clk 0:02:17]} 22. Kg2 {[%clk 0:01:21]}  Qxg5+ {[%clk 0:02:17]} 23. Kh1 {[%clk 0:01:21]}  Qh4+ {[%clk 0:02:03]} 24. Kg2 {[%clk 0:01:15]}  Qg4+ {[%clk 0:02:03]} 25. Kh1 {[%clk 0:01:14]}  Qh3+ {[%clk 0:02:00]} 26. Kg1 {[%clk 0:01:13]}  Ng4 {[%clk 0:02:01]} 0-1

[Event "November 21 Early 2023"]
[Site "https://www.chess.com"]
[Date "2023.11.21"]
[Round "5"]
[White "luckyswitchback"]
[Black "Grunberg, Mihai-Lucian"]
[Result "1-0"]
[Board "54"]
[TimeControl "180+1"]
[BlackFideId "1204149"]
[WhiteElo "2811"]
[BlackElo "2363"]
[BlackTeam "ROU"]
[WhiteClock "0:00:10"]
[BlackClock "0:00:43"]

1. e4 {[%clk 0:03:00]}  Nf6 {[%clk 0:02:59]} 2. e5 {[%clk 0:03:00]}  Nd5 {[%clk 0:03:00]} 3. c4 {[%clk 0:03:00]}  Nb6 {[%clk 0:03:00]} 4. d4 {[%clk 0:03:01]}  d6 {[%clk 0:03:00]} 5. exd6 {[%clk 0:03:02]}  cxd6 {[%clk 0:03:00]} 6. Nc3 {[%clk 0:03:01]}  g6 {[%clk 0:03:00]} 7. h3 {[%clk 0:03:01]}  Bg7 {[%clk 0:03:00]} 8. Nf3 {[%clk 0:03:01]}  O-O {[%clk 0:03:01]} 9. Be2 {[%clk 0:03:02]}  Nc6 {[%clk 0:03:01]} 10. O-O {[%clk 0:03:01]}  e5 {[%clk 0:03:01]} 11. Be3 {[%clk 0:02:59]}  Bf5 {[%clk 0:02:40]} 12. dxe5 {[%clk 0:02:42]}  dxe5 {[%clk 0:02:39]} 13. c5 {[%clk 0:02:42]}  Nd7 {[%clk 0:02:32]} 14. Qa4 {[%clk 0:02:30]}  h6 {[%clk 0:02:07]} 15. Rfd1 {[%clk 0:02:24]}  Be6 {[%clk 0:02:07]} 16. Rd6 {[%clk 0:02:07]}  Qe7 {[%clk 0:01:46]} 17. Rad1 {[%clk 0:02:01]}  Rfd8 {[%clk 0:01:45]} 18. Nd5 {[%clk 0:01:50]}  Bxd5 {[%clk 0:01:44]} 19. R1xd5 {[%clk 0:01:51]}  e4 {[%clk 0:01:36]} 20. Nd2 {[%clk 0:01:34]}  Nf6 {[%clk 0:01:33]} 21. Rxd8+ {[%clk 0:01:31]}  Rxd8 {[%clk 0:01:30]} 22. Rxd8+ {[%clk 0:01:29]}  Qxd8 {[%clk 0:01:28]} 23. Nxe4 {[%clk 0:01:13]}  Nxe4 {[%clk 0:01:28]} 24. Qxe4 {[%clk 0:01:14]}  Bxb2 {[%clk 0:01:29]} 25. Bxh6 {[%clk 0:01:00]}  Bd4 {[%clk 0:01:28]} 26. Be3 {[%clk 0:00:45]}  Bxe3 {[%clk 0:01:28]} 27. Qxe3 {[%clk 0:00:44]}  Qd5 {[%clk 0:01:25]} 28. Bf3 {[%clk 0:00:35]}  Qxa2 {[%clk 0:01:24]} 29. Bxc6 {[%clk 0:00:36]}  Qa1+ {[%clk 0:01:20]} 30. Kh2 {[%clk 0:00:36]}  bxc6 {[%clk 0:01:20]} 31. Qe8+ {[%clk 0:00:34]}  Kg7 {[%clk 0:01:20]} 32. Qxc6 {[%clk 0:00:35]}  Qe5+ {[%clk 0:01:20]} 33. g3 {[%clk 0:00:34]}  Qd4 {[%clk 0:01:17]} 34. Kg2 {[%clk 0:00:32]}  a5 {[%clk 0:01:17]} 35. Qb5 {[%clk 0:00:20]}  Qd5+ {[%clk 0:01:09]} 36. Kh2 {[%clk 0:00:19]}  Qd4 {[%clk 0:01:05]} 37. Kg1 {[%clk 0:00:18]}  Qd1+ {[%clk 0:01:05]} 38. Kg2 {[%clk 0:00:18]}  Qd5+ {[%clk 0:01:05]} 39. Kh2 {[%clk 0:00:19]}  Qd4 {[%clk 0:01:05]} 40. Kg1 {[%clk 0:00:16]}  Qd1+ {[%clk 0:01:05]} 41. Qf1 {[%clk 0:00:13]}  Qc2 {[%clk 0:00:57]} 42. Qa1+ {[%clk 0:00:12]}  Kg8 {[%clk 0:00:55]} 43. Qxa5 {[%clk 0:00:13]}  Qb1+ {[%clk 0:00:54]} 44. Kh2 {[%clk 0:00:13]}  Qf1 {[%clk 0:00:54]} 45. Qd8+ {[%clk 0:00:12]}  Kh7 {[%clk 0:00:53]} 46. Qd4 {[%clk 0:00:13]}  Qc1 {[%clk 0:00:52]} 47. h4 {[%clk 0:00:13]}  Qc2 {[%clk 0:00:49]} 48. Kg2 {[%clk 0:00:13]}  f5 {[%clk 0:00:49]} 49. Qd7+ {[%clk 0:00:12]}  Kh6 {[%clk 0:00:49]} 50. Qd5 {[%clk 0:00:11]}  Kh5 {[%clk 0:00:48]} 51. c6 {[%clk 0:00:11]}  Kh6 {[%clk 0:00:47]} 52. Qf3 {[%clk 0:00:10]}  Qc5 {[%clk 0:00:43]} 53. Qe3+ {[%clk 0:00:10]} 1-0

[Event "November 21 Early 2023"]
[Site "https://www.chess.com"]
[Date "2023.11.21"]
[Round "5"]
[White "Pendos666"]
[Black "Shubenkova, Veronika"]
[Result "1-0"]
[Board "56"]
[TimeControl "180+1"]
[BlackFideId "44124040"]
[WhiteElo "2809"]
[BlackElo "1967"]
[BlackTeam "RUS"]
[WhiteClock "0:00:18"]
[BlackClock "0:00:00"]

1. e4 {[%clk 0:03:00]}  c6 {[%clk 0:02:58]} 2. d4 {[%clk 0:03:00]}  d5 {[%clk 0:02:58]} 3. e5 {[%clk 0:03:00]}  Bf5 {[%clk 0:02:58]} 4. Nc3 {[%clk 0:03:00]}  e6 {[%clk 0:02:58]} 5. g4 {[%clk 0:02:59]}  Bg6 {[%clk 0:02:58]} 6. Nge2 {[%clk 0:03:00]}  c5 {[%clk 0:02:55]} 7. h4 {[%clk 0:03:00]}  h6 {[%clk 0:02:55]} 8. Be3 {[%clk 0:02:56]}  Nd7 {[%clk 0:02:44]} 9. f4 {[%clk 0:02:52]}  cxd4 {[%clk 0:02:41]} 10. Nxd4 {[%clk 0:02:52]}  Be7 {[%clk 0:02:34]} 11. f5 {[%clk 0:02:44]}  Bxh4+ {[%clk 0:02:33]} 12. Kd2 {[%clk 0:02:43]}  exf5 {[%clk 0:01:55]} 13. gxf5 {[%clk 0:02:42]}  Bh7 {[%clk 0:01:55]} 14. e6 {[%clk 0:02:28]}  Ne5 {[%clk 0:01:47]} 15. exf7+ {[%clk 0:02:23]}  Nxf7 {[%clk 0:01:40]} 16. Bb5+ {[%clk 0:02:12]}  Ke7 {[%clk 0:01:32]} 17. Ne6 {[%clk 0:01:57]}  Qa5 {[%clk 0:01:18]} 18. Bc5+ {[%clk 0:01:50]}  Nd6 {[%clk 0:01:15]} 19. b4 {[%clk 0:01:48]}  Qa3 {[%clk 0:01:12]} 20. Nxd5+ {[%clk 0:01:37]}  Kf7 {[%clk 0:01:06]} 21. Qh5+ {[%clk 0:01:33]}  g6 {[%clk 0:01:06]} 22. fxg6+ {[%clk 0:01:31]}  Bxg6 {[%clk 0:01:04]} 23. Raf1+ {[%clk 0:01:19]}  Bf6 {[%clk 0:01:02]} 24. Qh4 {[%clk 0:01:01]}  Ne4+ {[%clk 0:00:52]} 25. Kd1 {[%clk 0:00:45]}  Nc3+ {[%clk 0:00:17]} 26. Nxc3 {[%clk 0:00:44]}  Qxc3 {[%clk 0:00:17]} 27. Nd4 {[%clk 0:00:36]}  Rd8 {[%clk 0:00:13]} 28. Rf4 {[%clk 0:00:28]}  Bxc2+ {[%clk 0:00:11]} 29. Ke2 {[%clk 0:00:27]}  Bg6 {[%clk 0:00:06]} 30. Rhf1 {[%clk 0:00:25]}  Qb2+ {[%clk 0:00:05]} 31. Ke1 {[%clk 0:00:24]}  Qc1+ {[%clk 0:00:04]} 32. Kf2 {[%clk 0:00:24]}  Qd2+ {[%clk 0:00:02]} 33. Kg1 {[%clk 0:00:20]}  Qe3+ {[%clk 0:00:03]} 34. R1f2 {[%clk 0:00:20]}  Kg7 {[%clk 0:00:03]} 35. Rxf6 {[%clk 0:00:20]}  Qe1+ {[%clk 0:00:02]} 36. Kg2 {[%clk 0:00:20]}  Be4+ {[%clk 0:00:02]} 37. Nf3 {[%clk 0:00:18]}  Bxf3+ {[%clk 0:00:00]} 38. R6xf3 {[%clk 0:00:18]} 1-0

[Event "November 21 Early 2023"]
[Site "https://www.chess.com"]
[Date "2023.11.21"]
[Round "5"]
[White "Rychkov, Oleg"]
[Black "Zomorrodian, Eilia"]
[Result "0-1"]
[Board "57"]
[TimeControl "180+1"]
[WhiteFideId "4122852"]
[BlackFideId "12551805"]
[WhiteElo "2398"]
[BlackElo "2109"]
[WhiteTeam "RUS"]
[BlackTeam "CAN"]
[WhiteClock "0:00:13"]
[BlackClock "0:00:03"]

1. e4 {[%clk 0:03:00]}  c5 {[%clk 0:02:55]} 2. Nf3 {[%clk 0:03:00]}  e6 {[%clk 0:02:55]} 3. g3 {[%clk 0:02:59]}  a6 {[%clk 0:02:56]} 4. Bg2 {[%clk 0:02:58]}  b5 {[%clk 0:02:56]} 5. O-O {[%clk 0:02:56]}  Bb7 {[%clk 0:02:57]} 6. d4 {[%clk 0:02:54]}  Bxe4 {[%clk 0:02:52]} 7. Nc3 {[%clk 0:02:52]}  Bb7 {[%clk 0:02:48]} 8. Re1 {[%clk 0:02:40]}  Nf6 {[%clk 0:02:39]} 9. Bg5 {[%clk 0:02:37]}  b4 {[%clk 0:02:21]} 10. Na4 {[%clk 0:02:25]}  Qa5 {[%clk 0:02:14]} 11. Nxc5 {[%clk 0:02:23]}  Bxc5 {[%clk 0:02:10]} 12. dxc5 {[%clk 0:02:23]}  Qxc5 {[%clk 0:02:11]} 13. Be3 {[%clk 0:01:55]}  Qc6 {[%clk 0:01:28]} 14. Qd4 {[%clk 0:01:50]}  O-O {[%clk 0:01:17]} 15. Qxb4 {[%clk 0:01:47]}  Nd5 {[%clk 0:01:09]} 16. Qb3 {[%clk 0:01:43]}  Nxe3 {[%clk 0:01:09]} 17. Rxe3 {[%clk 0:01:43]}  Qc7 {[%clk 0:01:03]} 18. Rc3 {[%clk 0:01:38]}  Nc6 {[%clk 0:01:03]} 19. Rd1 {[%clk 0:01:34]}  Rab8 {[%clk 0:00:54]} 20. Qa4 {[%clk 0:01:34]}  Qb6 {[%clk 0:00:36]} 21. Rb3 {[%clk 0:01:30]}  Qc7 {[%clk 0:00:23]} 22. Qh4 {[%clk 0:01:29]}  d5 {[%clk 0:00:23]} 23. c4 {[%clk 0:01:20]}  Ne7 {[%clk 0:00:23]} 24. cxd5 {[%clk 0:01:13]}  Bxd5 {[%clk 0:00:22]} 25. Rc3 {[%clk 0:01:13]}  Qb7 {[%clk 0:00:21]} 26. b3 {[%clk 0:01:10]}  h6 {[%clk 0:00:17]} 27. Qg4 {[%clk 0:01:07]}  Ng6 {[%clk 0:00:15]} 28. Rcd3 {[%clk 0:01:03]}  Rfc8 {[%clk 0:00:14]} 29. h4 {[%clk 0:01:01]}  Rc2 {[%clk 0:00:13]} 30. Rxd5 {[%clk 0:00:59]}  exd5 {[%clk 0:00:13]} 31. h5 {[%clk 0:00:59]}  Ne7 {[%clk 0:00:14]} 32. Ne5 {[%clk 0:00:59]}  Qb6 {[%clk 0:00:12]} 33. Qf3 {[%clk 0:00:51]}  Qf6 {[%clk 0:00:08]} 34. Qxf6 {[%clk 0:00:47]}  gxf6 {[%clk 0:00:09]} 35. Nd7 {[%clk 0:00:48]}  Rbc8 {[%clk 0:00:09]} 36. Nxf6+ {[%clk 0:00:48]}  Kg7 {[%clk 0:00:09]} 37. Nxd5 {[%clk 0:00:48]}  Nxd5 {[%clk 0:00:10]} 38. Rxd5 {[%clk 0:00:48]}  Rxa2 {[%clk 0:00:10]} 39. Rd7 {[%clk 0:00:46]}  Rc1+ {[%clk 0:00:10]} 40. Kh2 {[%clk 0:00:45]}  Rxf2 {[%clk 0:00:11]} 41. Kh3 {[%clk 0:00:44]}  Rcc2 {[%clk 0:00:09]} 42. Be4 {[%clk 0:00:44]}  Rcd2 {[%clk 0:00:08]} 43. Ra7 {[%clk 0:00:41]}  Rd6 {[%clk 0:00:07]} 44. Bg6 {[%clk 0:00:25]}  Rdf6 {[%clk 0:00:06]} 45. Bd3 {[%clk 0:00:22]}  Rb2 {[%clk 0:00:06]} 46. Bc4 {[%clk 0:00:21]}  Rb1 {[%clk 0:00:03]} 47. Ra8 {[%clk 0:00:19]}  Rb2 {[%clk 0:00:03]} 48. Ra7 {[%clk 0:00:19]}  Rb1 {[%clk 0:00:02]} 49. Ra8 {[%clk 0:00:19]}  Ra1 {[%clk 0:00:02]} 50. Ra7 {[%clk 0:00:19]}  Ra3 {[%clk 0:00:03]} 51. Kg4 {[%clk 0:00:19]}  a5 {[%clk 0:00:03]} 52. Kh4 {[%clk 0:00:18]}  Ra1 {[%clk 0:00:04]} 53. Kg4 {[%clk 0:00:18]}  Rf2 {[%clk 0:00:04]} 54. Kh4 {[%clk 0:00:17]}  Kg8 {[%clk 0:00:03]} 55. Kg4 {[%clk 0:00:17]}  Kg7 {[%clk 0:00:04]} 56. Ra6 {[%clk 0:00:17]}  f5+ {[%clk 0:00:02]} 57. Kh3 {[%clk 0:00:13]}  Rh1# {[%clk 0:00:03]} 0-1

[Event "November 21 Early 2023"]
[Site "https://www.chess.com"]
[Date "2023.11.21"]
[Round "5"]
[White "Vignesh N R"]
[Black "brm72"]
[Result "1-0"]
[Board "59"]
[TimeControl "180+1"]
[WhiteFideId "25012215"]
[WhiteElo "2425"]
[BlackElo "2540"]
[WhiteTeam "IND"]
[WhiteClock "0:00:18"]
[BlackClock "0:00:15"]

1. d4 {[%clk 0:03:00]}  Nf6 {[%clk 0:03:00]} 2. c4 {[%clk 0:03:00]}  e6 {[%clk 0:03:00]} 3. Nf3 {[%clk 0:03:00]}  b6 {[%clk 0:03:00]} 4. g3 {[%clk 0:02:59]}  Bb7 {[%clk 0:03:01]} 5. Bg2 {[%clk 0:03:00]}  Be7 {[%clk 0:02:58]} 6. O-O {[%clk 0:03:00]}  O-O {[%clk 0:02:58]} 7. Re1 {[%clk 0:03:00]}  d5 {[%clk 0:02:27]} 8. Ne5 {[%clk 0:02:58]}  Nbd7 {[%clk 0:02:27]} 9. Nc3 {[%clk 0:02:29]}  c6 {[%clk 0:02:19]} 10. Bf4 {[%clk 0:01:50]}  Rc8 {[%clk 0:02:11]} 11. e4 {[%clk 0:01:45]}  dxe4 {[%clk 0:02:09]} 12. Qc2 {[%clk 0:01:34]}  Bb4 {[%clk 0:02:06]} 13. Rad1 {[%clk 0:01:29]}  Qe7 {[%clk 0:01:59]} 14. Bg5 {[%clk 0:01:14]}  h6 {[%clk 0:01:57]} 15. Nxd7 {[%clk 0:01:14]}  hxg5 {[%clk 0:01:49]} 16. Nxf8 {[%clk 0:01:12]}  Qxf8 {[%clk 0:01:45]} 17. Bxe4 {[%clk 0:01:10]}  Nxe4 {[%clk 0:01:43]} 18. Qxe4 {[%clk 0:01:11]}  Bxc3 {[%clk 0:01:40]} 19. bxc3 {[%clk 0:01:11]}  Qa3 {[%clk 0:01:41]} 20. Qf3 {[%clk 0:01:03]}  Rd8 {[%clk 0:01:33]} 21. Re5 {[%clk 0:00:58]}  g4 {[%clk 0:00:46]} 22. Qxg4 {[%clk 0:00:50]}  Qxc3 {[%clk 0:00:46]} 23. Rg5 {[%clk 0:00:38]}  g6 {[%clk 0:00:45]} 24. c5 {[%clk 0:00:32]}  Bc8 {[%clk 0:00:34]} 25. h4 {[%clk 0:00:28]}  e5 {[%clk 0:00:32]} 26. Qe4 {[%clk 0:00:21]}  exd4 {[%clk 0:00:25]} 27. Qxc6 {[%clk 0:00:18]}  Qc2 {[%clk 0:00:17]} 28. Re1 {[%clk 0:00:18]}  d3 {[%clk 0:00:17]} 29. Rxg6+ {[%clk 0:00:16]}  fxg6 {[%clk 0:00:16]} 30. Qxg6+ {[%clk 0:00:17]}  Kf8 {[%clk 0:00:14]} 31. Qf6+ {[%clk 0:00:18]}  Kg8 {[%clk 0:00:15]} 32. Qxd8+ {[%clk 0:00:18]}  Kg7 {[%clk 0:00:15]} 33. Qg5+ {[%clk 0:00:18]}  Kf7 {[%clk 0:00:15]} 34. Re7+ {[%clk 0:00:18]} 1-0

[Event "November 21 Early 2023"]
[Site "https://www.chess.com"]
[Date "2023.11.21"]
[Round "5"]
[White "Miszler, Levente"]
[Black "Skvortsov, Andrei"]
[Result "0-1"]
[Board "60"]
[TimeControl "180+1"]
[WhiteFideId "763276"]
[BlackFideId "24108600"]
[WhiteElo "2186"]
[BlackElo "2357"]
[WhiteTeam "HUN"]
[BlackTeam "MNE"]
[WhiteClock "0:00:56"]
[BlackClock "0:01:46"]

1. Nf3 {[%clk 0:03:00]}  g6 {[%clk 0:02:59]} 2. c4 {[%clk 0:03:01]}  Bg7 {[%clk 0:02:59]} 3. g3 {[%clk 0:03:02]}  e6 {[%clk 0:02:59]} 4. Bg2 {[%clk 0:03:02]}  d5 {[%clk 0:03:00]} 5. O-O {[%clk 0:03:03]}  Ne7 {[%clk 0:03:00]} 6. d4 {[%clk 0:03:02]}  O-O {[%clk 0:03:01]} 7. Nc3 {[%clk 0:03:02]}  dxc4 {[%clk 0:03:01]} 8. e4 {[%clk 0:03:01]}  Nbc6 {[%clk 0:03:01]} 9. Be3 {[%clk 0:03:00]}  a6 {[%clk 0:02:51]} 10. a4 {[%clk 0:02:59]}  Rb8 {[%clk 0:02:46]} 11. Qd2 {[%clk 0:02:42]}  Re8 {[%clk 0:02:41]} 12. Rfd1 {[%clk 0:02:39]}  b5 {[%clk 0:02:40]} 13. axb5 {[%clk 0:02:33]}  axb5 {[%clk 0:02:41]} 14. d5 {[%clk 0:02:33]}  exd5 {[%clk 0:02:40]} 15. exd5 {[%clk 0:02:32]}  Nb4 {[%clk 0:02:39]} 16. Ba7 {[%clk 0:01:57]}  Rb7 {[%clk 0:02:34]} 17. Nd4 {[%clk 0:01:57]}  Nd3 {[%clk 0:02:30]} 18. Ncxb5 {[%clk 0:01:18]}  Nf5 {[%clk 0:02:03]} 19. Nxf5 {[%clk 0:01:12]}  Bxf5 {[%clk 0:01:56]} 20. Nd4 {[%clk 0:01:09]}  Rxa7 {[%clk 0:01:52]} 21. Nc6 {[%clk 0:01:10]}  Rxa1 {[%clk 0:01:52]} 22. Nxd8 {[%clk 0:01:10]}  Rxd1+ {[%clk 0:01:53]} 23. Qxd1 {[%clk 0:01:11]}  Re1+ {[%clk 0:01:52]} 24. Qxe1 {[%clk 0:01:10]}  Nxe1 {[%clk 0:01:53]} 25. Bf1 {[%clk 0:01:06]}  Nf3+ {[%clk 0:01:46]} 26. Kg2 {[%clk 0:01:03]}  Nd2 {[%clk 0:01:47]} 27. f3 {[%clk 0:00:56]}  Nxf1 {[%clk 0:01:46]} 0-1

[Event "November 21 Early 2023"]
[Site "https://www.chess.com"]
[Date "2023.11.21"]
[Round "5"]
[White "Hulka, Valentyn"]
[Black "Mohammed, Zozek Salah Mohammed"]
[Result "1-0"]
[Board "62"]
[TimeControl "180+1"]
[WhiteFideId "34107061"]
[BlackFideId "4803361"]
[WhiteElo "2163"]
[BlackElo "2211"]
[WhiteTeam "UKR"]
[BlackTeam "IRQ"]
[WhiteClock "0:00:07"]
[BlackClock "0:00:00"]

1. e4 {[%clk 0:03:00]}  e6 {[%clk 0:02:56]} 2. d4 {[%clk 0:03:01]}  d5 {[%clk 0:02:56]} 3. Nd2 {[%clk 0:03:01]}  c5 {[%clk 0:02:55]} 4. exd5 {[%clk 0:03:01]}  Qxd5 {[%clk 0:02:55]} 5. Ngf3 {[%clk 0:03:02]}  cxd4 {[%clk 0:02:55]} 6. Bc4 {[%clk 0:03:03]}  Qd6 {[%clk 0:02:54]} 7. O-O {[%clk 0:03:03]}  Nf6 {[%clk 0:02:50]} 8. Nb3 {[%clk 0:03:03]}  Nc6 {[%clk 0:02:51]} 9. Nbxd4 {[%clk 0:03:01]}  Nxd4 {[%clk 0:02:50]} 10. Nxd4 {[%clk 0:03:02]}  a6 {[%clk 0:02:49]} 11. c3 {[%clk 0:02:57]}  Qc7 {[%clk 0:02:46]} 12. Bb3 {[%clk 0:02:55]}  Bd6 {[%clk 0:02:46]} 13. h3 {[%clk 0:02:54]}  O-O {[%clk 0:02:43]} 14. Qf3 {[%clk 0:02:54]}  Rb8 {[%clk 0:02:38]} 15. Bg5 {[%clk 0:02:54]}  Nd7 {[%clk 0:02:19]} 16. Rad1 {[%clk 0:02:48]}  Ne5 {[%clk 0:02:16]} 17. Qe2 {[%clk 0:02:46]}  b5 {[%clk 0:02:12]} 18. Rfe1 {[%clk 0:02:44]}  Ng6 {[%clk 0:02:00]} 19. Bc2 {[%clk 0:02:38]}  Bb7 {[%clk 0:01:52]} 20. Nxe6 {[%clk 0:02:28]}  Bh2+ {[%clk 0:01:45]} 21. Kh1 {[%clk 0:02:26]}  fxe6 {[%clk 0:01:46]} 22. Qxe6+ {[%clk 0:02:18]}  Kh8 {[%clk 0:01:46]} 23. Bxg6 {[%clk 0:01:34]}  hxg6 {[%clk 0:01:47]} 24. Qxg6 {[%clk 0:00:59]}  Rxf2 {[%clk 0:00:16]} 25. Qh5+ {[%clk 0:00:53]}  Kg8 {[%clk 0:00:15]} 26. Re8+ {[%clk 0:00:54]}  Rf8 {[%clk 0:00:12]} 27. Re7 {[%clk 0:00:45]}  Qc6 {[%clk 0:00:10]} 28. Qg4 {[%clk 0:00:45]}  Bd6 {[%clk 0:00:07]} 29. Rxg7+ {[%clk 0:00:17]}  Kxg7 {[%clk 0:00:06]} 30. Be7+ {[%clk 0:00:17]}  Kf7 {[%clk 0:00:05]} 31. Bxd6 {[%clk 0:00:12]}  Qxg2+ {[%clk 0:00:03]} 32. Qxg2 {[%clk 0:00:13]}  Bxg2+ {[%clk 0:00:03]} 33. Kxg2 {[%clk 0:00:14]}  Rg8+ {[%clk 0:00:03]} 34. Kh2 {[%clk 0:00:14]}  Rbd8 {[%clk 0:00:02]} 35. Rf1+ {[%clk 0:00:15]}  Ke6 {[%clk 0:00:03]} 36. Bf4 {[%clk 0:00:15]}  Rd3 {[%clk 0:00:03]} 37. h4 {[%clk 0:00:13]}  Rf8 {[%clk 0:00:03]} 38. h5 {[%clk 0:00:10]}  Rf5 {[%clk 0:00:03]} 39. h6 {[%clk 0:00:09]}  Kf7 {[%clk 0:00:03]} 40. Rf2 {[%clk 0:00:08]}  Kg6 {[%clk 0:00:02]} 41. a3 {[%clk 0:00:07]}  Kh7 {[%clk 0:00:02]} 42. Kg1 {[%clk 0:00:07]}  Rd1+ {[%clk 0:00:02]} 43. Kg2 {[%clk 0:00:08]}  Rd7 {[%clk 0:00:00]} 44. Kf3 {[%clk 0:00:07]} 1-0

[Event "November 21 Early 2023"]
[Site "https://www.chess.com"]
[Date "2023.11.21"]
[Round "5"]
[White "Borsuk, Konstantin"]
[Black "Mirzanurov, Bulat"]
[Result "1-0"]
[Board "63"]
[TimeControl "180+1"]
[WhiteFideId "14113406"]
[BlackFideId "4184521"]
[WhiteElo "2410"]
[BlackElo "2005"]
[WhiteTeam "UKR"]
[BlackTeam "RUS"]
[WhiteClock "0:00:05"]
[BlackClock "0:00:03"]

1. d4 {[%clk 0:02:24]}  d5 {[%clk 0:02:58]} 2. c4 {[%clk 0:02:25]}  e6 {[%clk 0:02:57]} 3. Nc3 {[%clk 0:02:25]}  c5 {[%clk 0:02:56]} 4. cxd5 {[%clk 0:02:24]}  exd5 {[%clk 0:02:55]} 5. Nf3 {[%clk 0:02:24]}  Nc6 {[%clk 0:02:55]} 6. g3 {[%clk 0:02:24]}  Nf6 {[%clk 0:02:53]} 7. Bg2 {[%clk 0:02:23]}  cxd4 {[%clk 0:02:53]} 8. Nxd4 {[%clk 0:02:23]}  Bc5 {[%clk 0:02:53]} 9. Nb3 {[%clk 0:02:19]}  Bb6 {[%clk 0:02:52]} 10. O-O {[%clk 0:02:19]}  d4 {[%clk 0:02:51]} 11. Na4 {[%clk 0:02:18]}  O-O {[%clk 0:02:50]} 12. Nxb6 {[%clk 0:02:08]}  axb6 {[%clk 0:02:49]} 13. Bxc6 {[%clk 0:01:53]}  bxc6 {[%clk 0:02:48]} 14. Qxd4 {[%clk 0:01:54]}  Qc7 {[%clk 0:02:47]} 15. Bf4 {[%clk 0:01:53]}  Qb7 {[%clk 0:02:47]} 16. Be5 {[%clk 0:01:44]}  c5 {[%clk 0:02:44]} 17. Qh4 {[%clk 0:01:41]}  Nd5 {[%clk 0:02:28]} 18. e4 {[%clk 0:01:15]}  Nb4 {[%clk 0:02:25]} 19. a3 {[%clk 0:01:13]}  Nd3 {[%clk 0:01:57]} 20. Bc3 {[%clk 0:00:58]}  Be6 {[%clk 0:01:53]} 21. Nd2 {[%clk 0:00:58]}  Rad8 {[%clk 0:01:42]} 22. Nf3 {[%clk 0:00:39]}  f6 {[%clk 0:01:25]} 23. Ne1 {[%clk 0:00:37]}  Bc4 {[%clk 0:00:57]} 24. Nxd3 {[%clk 0:00:36]}  Bxd3 {[%clk 0:00:57]} 25. Rfe1 {[%clk 0:00:37]}  Rfe8 {[%clk 0:00:52]} 26. e5 {[%clk 0:00:37]}  fxe5 {[%clk 0:00:30]} 27. Rxe5 {[%clk 0:00:36]}  Bg6 {[%clk 0:00:26]} 28. Rae1 {[%clk 0:00:32]}  Qd7 {[%clk 0:00:20]} 29. Qg5 {[%clk 0:00:26]}  Rxe5 {[%clk 0:00:19]} 30. Bxe5 {[%clk 0:00:26]}  Re8 {[%clk 0:00:18]} 31. h4 {[%clk 0:00:26]}  Bf5 {[%clk 0:00:11]} 32. Kh2 {[%clk 0:00:20]}  h6 {[%clk 0:00:11]} 33. Qf4 {[%clk 0:00:20]}  Kh7 {[%clk 0:00:10]} 34. Bc3 {[%clk 0:00:15]}  Rxe1 {[%clk 0:00:10]} 35. Bxe1 {[%clk 0:00:16]}  Qd5 {[%clk 0:00:10]} 36. Bc3 {[%clk 0:00:16]}  Be4 {[%clk 0:00:08]} 37. Qc7 {[%clk 0:00:14]}  Qg8 {[%clk 0:00:06]} 38. Qxb6 {[%clk 0:00:14]}  c4 {[%clk 0:00:06]} 39. Qd4 {[%clk 0:00:14]}  Bd3 {[%clk 0:00:06]} 40. a4 {[%clk 0:00:14]}  Qf7 {[%clk 0:00:07]} 41. a5 {[%clk 0:00:13]}  g5 {[%clk 0:00:07]} 42. a6 {[%clk 0:00:12]}  gxh4 {[%clk 0:00:06]} 43. gxh4 {[%clk 0:00:09]}  Qc7+ {[%clk 0:00:06]} 44. Qe5 {[%clk 0:00:09]}  Qf7 {[%clk 0:00:04]} 45. f4 {[%clk 0:00:08]}  Qg8 {[%clk 0:00:02]} 46. Qe7+ {[%clk 0:00:08]}  Kg6 {[%clk 0:00:02]} 47. a7 {[%clk 0:00:08]}  Kh5 {[%clk 0:00:02]} 48. Qe5+ {[%clk 0:00:08]}  Kxh4 {[%clk 0:00:02]} 49. Qf6+ {[%clk 0:00:07]}  Kh5 {[%clk 0:00:03]} 50. Qg7 {[%clk 0:00:06]}  Qa8 {[%clk 0:00:02]} 51. f5 {[%clk 0:00:05]}  Qf3 {[%clk 0:00:02]} 52. Qg6+ {[%clk 0:00:05]}  Kh4 {[%clk 0:00:03]} 53. Bf6# {[%clk 0:00:05]} 1-0